[Event "*** SCC Grand Prix: Titled Tuesday Blitz"]
[Site "Chess.com"]
[Date "2020.08.11"]
[Round "6"]
[White "FairChess_on_YouTube"]
[Black "Anton_Demchenko"]
[Result "1/2-1/2"]
[WhiteElo "2989"]
[BlackElo "2836"]
[TimeControl "180+1"]
[EndTime "11:07:04 PDT"]
[Termination "Game drawn by repetition"]

1. e4 {[%clk 0:03:00.9]} 1... e5 {[%clk 0:02:56.8]} 2. Nf3 {[%clk 0:03:00.5]}
2... Nc6 {[%clk 0:02:57.4]} 3. Bb5 {[%clk 0:03:00.5]} 3... a6 {[%clk 0:02:58]}
4. Ba4 {[%clk 0:03:00.6]} 4... Nge7 {[%clk 0:02:58.7]} 5. O-O {[%clk 0:02:57.8]}
5... Ng6 {[%clk 0:02:58.2]} 6. c3 {[%clk 0:02:54.6]} 6... d6 {[%clk 0:02:58]} 7.
d4 {[%clk 0:02:54.4]} 7... Bd7 {[%clk 0:02:58.8]} 8. d5 {[%clk 0:02:48.3]} 8...
Nb8 {[%clk 0:02:58.2]} 9. c4 {[%clk 0:02:48.1]} 9... Be7 {[%clk 0:02:58.2]} 10.
Nc3 {[%clk 0:02:47.5]} 10... O-O {[%clk 0:02:58.4]} 11. Be3 {[%clk 0:02:43.6]}
11... f5 {[%clk 0:02:57.6]} 12. exf5 {[%clk 0:02:32.7]} 12... Bxf5 {[%clk
0:02:57.5]} 13. Nd2 {[%clk 0:02:32.6]} 13... Nd7 {[%clk 0:02:56.6]} 14. Nde4
{[%clk 0:02:31.6]} 14... h6 {[%clk 0:02:50.4]} 15. Bc2 {[%clk 0:02:30.2]} 15...
Qc8 {[%clk 0:02:37.5]} 16. Qh5 {[%clk 0:02:20.1]} 16... Nf6 {[%clk 0:02:02.2]}
17. Nxf6+ {[%clk 0:02:13.5]} 17... Rxf6 {[%clk 0:02:03.1]} 18. Ne4 {[%clk
0:02:07.8]} 18... Rf7 {[%clk 0:01:59.4]} 19. Rae1 {[%clk 0:02:03.4]} 19... Nh4
{[%clk 0:01:19.3]} 20. Qe2 {[%clk 0:01:36.2]} 20... Bh3 {[%clk 0:00:52.7]} 21.
gxh3 {[%clk 0:01:33.8]} 21... Nf3+ {[%clk 0:00:53]} 22. Kg2 {[%clk 0:01:31.2]}
22... Nh4+ {[%clk 0:00:45.8]} 23. Kh1 {[%clk 0:01:28]} 23... Qxh3 {[%clk
0:00:45.9]} 24. Rg1 {[%clk 0:01:01]} 24... Nf3 {[%clk 0:00:43.9]} 25. Rg2 {[%clk
0:01:01.1]} 25... Raf8 {[%clk 0:00:39.5]} 26. Reg1 {[%clk 0:00:54.8]} 26... Nxg1
{[%clk 0:00:35]} 27. Kxg1 {[%clk 0:00:55.7]} 27... Bh4 {[%clk 0:00:21.8]} 28.
Bxh6 {[%clk 0:00:46.8]} 28... Bxf2+ {[%clk 0:00:14.1]} 29. Nxf2 {[%clk
0:00:37.7]} 29... Qxh6 {[%clk 0:00:14.2]} 30. h3 {[%clk 0:00:35]} 30... Qc1+
{[%clk 0:00:14.3]} 31. Kh2 {[%clk 0:00:34.3]} 31... Qf4+ {[%clk 0:00:13.8]} 32.
Kh1 {[%clk 0:00:30.4]} 32... Qc1+ {[%clk 0:00:14]} 33. Rg1 {[%clk 0:00:20.8]}
33... Qh6 {[%clk 0:00:10.7]} 34. Rg2 {[%clk 0:00:15.8]} 34... Qc1+ {[%clk
0:00:10.3]} 35. Rg1 {[%clk 0:00:15.7]} 35... Qh6 {[%clk 0:00:10.3]} 36. Rg2
{[%clk 0:00:09.7]} 36... Qc1+ {[%clk 0:00:09.6]} 1/2-1/2

[Event "*** SCC Grand Prix: Titled Tuesday Blitz"]
[Site "Chess.com"]
[Date "2020.08.11"]
[Round "6"]
[White "DenLaz"]
[Black "DariaVoit"]
[Result "1-0"]
[WhiteElo "2681"]
[BlackElo "2495"]
[TimeControl "180+1"]
[EndTime "11:07:04 PDT"]
[Termination "DenLaz won on time"]

1. Nf3 {[%clk 0:03:00.2]} 1... Nf6 {[%clk 0:02:59.6]} 2. b3 {[%clk 0:02:59.5]}
2... g6 {[%clk 0:02:59.4]} 3. Bb2 {[%clk 0:02:59.3]} 3... Bg7 {[%clk 0:03:00]}
4. c4 {[%clk 0:02:59.7]} 4... c6 {[%clk 0:02:58.8]} 5. g3 {[%clk 0:02:59.9]}
5... d5 {[%clk 0:02:58.9]} 6. Bg2 {[%clk 0:03:00.2]} 6... O-O {[%clk 0:02:59.4]}
7. O-O {[%clk 0:03:00.3]} 7... a5 {[%clk 0:02:57.1]} 8. cxd5 {[%clk 0:02:57.3]}
8... cxd5 {[%clk 0:02:43.6]} 9. Nc3 {[%clk 0:02:56.2]} 9... Nc6 {[%clk
0:02:39.3]} 10. Rc1 {[%clk 0:02:54.2]} 10... d4 {[%clk 0:02:33.6]} 11. Na4
{[%clk 0:02:49.5]} 11... e5 {[%clk 0:02:32.8]} 12. Rxc6 {[%clk 0:02:47.4]} 12...
bxc6 {[%clk 0:02:29.5]} 13. Nxe5 {[%clk 0:02:47.7]} 13... Bb7 {[%clk 0:02:22.5]}
14. Nxc6 {[%clk 0:02:43.7]} 14... Bxc6 {[%clk 0:02:19.5]} 15. Bxc6 {[%clk
0:02:44.6]} 15... Rc8 {[%clk 0:02:18.9]} 16. Bg2 {[%clk 0:02:34.4]} 16... Re8
{[%clk 0:02:09.3]} 17. d3 {[%clk 0:02:08.6]} 17... Qd6 {[%clk 0:01:50.3]} 18.
Bf3 {[%clk 0:02:05.1]} 18... Nd7 {[%clk 0:01:48.8]} 19. Qa1 {[%clk 0:02:01.3]}
19... Rc2 {[%clk 0:01:41.3]} 20. Rc1 {[%clk 0:01:46.6]} 20... Rec8 {[%clk
0:01:31.8]} 21. Rxc2 {[%clk 0:01:42.7]} 21... Rxc2 {[%clk 0:01:32.7]} 22. Qd1
{[%clk 0:01:39.6]} 22... Rc7 {[%clk 0:01:31]} 23. Qd2 {[%clk 0:01:37]} 23... Qb4
{[%clk 0:01:14.7]} 24. Qxb4 {[%clk 0:01:30.1]} 24... axb4 {[%clk 0:01:14.2]} 25.
a3 {[%clk 0:01:30.7]} 25... bxa3 {[%clk 0:01:04]} 26. Bxa3 {[%clk 0:01:31.6]}
26... Bf8 {[%clk 0:00:58.7]} 27. Bb2 {[%clk 0:01:27.6]} 27... Bg7 {[%clk
0:00:47]} 28. Kf1 {[%clk 0:01:26.2]} 28... Rc2 {[%clk 0:00:42.3]} 29. Ke1 {[%clk
0:01:22.7]} 29... Kf8 {[%clk 0:00:25]} 30. Kd1 {[%clk 0:01:21.6]} 30... Rc8
{[%clk 0:00:24.6]} 31. Ba3+ {[%clk 0:01:12.8]} 31... Ke8 {[%clk 0:00:24.2]} 32.
Bd6 {[%clk 0:01:13.4]} 32... Bf8 {[%clk 0:00:22.3]} 33. Bb7 {[%clk 0:01:07.8]}
33... Bxd6 {[%clk 0:00:05.8]} 34. Bxc8 {[%clk 0:01:06.7]} 34... Nc5 {[%clk
0:00:06.7]} 35. Kc2 {[%clk 0:00:56.7]} 35... Nxa4 {[%clk 0:00:06.3]} 36. bxa4
{[%clk 0:00:56.6]} 36... Bb4 {[%clk 0:00:06.8]} 37. Kb3 {[%clk 0:00:55.4]} 37...
Be1 {[%clk 0:00:06.8]} 38. f3 {[%clk 0:00:55.4]} 38... Kd8 {[%clk 0:00:06.9]}
39. Ba6 {[%clk 0:00:54.2]} 39... Kc7 {[%clk 0:00:06.7]} 40. Kc4 {[%clk 0:00:54]}
40... Kb6 {[%clk 0:00:06.8]} 41. Bb5 {[%clk 0:00:54.1]} 41... Bf2 {[%clk
0:00:06]} 42. g4 {[%clk 0:00:51.8]} 42... f6 {[%clk 0:00:05.8]} 43. Kd5 {[%clk
0:00:51.3]} 43... h5 {[%clk 0:00:03.2]} 44. gxh5 {[%clk 0:00:42.2]} 44... gxh5
{[%clk 0:00:02.9]} 45. Ke6 {[%clk 0:00:43.1]} 45... Bh4 {[%clk 0:00:01.4]} 46.
Be8 {[%clk 0:00:42.5]} 1-0

[Event "*** SCC Grand Prix: Titled Tuesday Blitz"]
[Site "Chess.com"]
[Date "2020.08.11"]
[Round "6"]
[White "Sultanasharminshirin"]
[Black "chess_rehab"]
[Result "0-1"]
[WhiteElo "2039"]
[BlackElo "2297"]
[TimeControl "180+1"]
[EndTime "11:07:06 PDT"]
[Termination "chess_rehab won on time"]

1. d4 {[%clk 0:03:00.9]} 1... d5 {[%clk 0:02:59.5]} 2. c4 {[%clk 0:03:00]} 2...
e6 {[%clk 0:02:59.3]} 3. Nc3 {[%clk 0:02:59.8]} 3... Nf6 {[%clk 0:02:59]} 4. Nf3
{[%clk 0:02:59.7]} 4... Be7 {[%clk 0:02:58.9]} 5. Bf4 {[%clk 0:02:58.9]} 5...
O-O {[%clk 0:02:58.4]} 6. e3 {[%clk 0:02:59.3]} 6... c5 {[%clk 0:02:58.3]} 7.
dxc5 {[%clk 0:02:49]} 7... Bxc5 {[%clk 0:02:57.3]} 8. Qc2 {[%clk 0:02:48.8]}
8... Nc6 {[%clk 0:02:48.5]} 9. Rd1 {[%clk 0:02:46.2]} 9... Qa5 {[%clk
0:02:40.4]} 10. Bg5 {[%clk 0:02:00.4]} 10... Ne4 {[%clk 0:02:20.4]} 11. Bd3
{[%clk 0:01:59]} 11... f5 {[%clk 0:01:59.3]} 12. O-O {[%clk 0:01:52.3]} 12...
Nb4 {[%clk 0:01:47.6]} 13. Qb1 {[%clk 0:00:46.9]} 13... Nxc3 {[%clk 0:01:32.2]}
14. bxc3 {[%clk 0:00:45]} 14... Nxa2 {[%clk 0:01:32.3]} 15. Qa1 {[%clk
0:00:41.1]} 15... b6 {[%clk 0:00:50.2]} 16. cxd5 {[%clk 0:00:36.5]} 16... Nxc3
{[%clk 0:00:44.5]} 17. Qxa5 {[%clk 0:00:24.1]} 17... bxa5 {[%clk 0:00:42.1]} 18.
Rc1 {[%clk 0:00:24.6]} 18... Bb4 {[%clk 0:00:41.8]} 19. d6 {[%clk 0:00:19.8]}
19... h6 {[%clk 0:00:38.3]} 20. Be7 {[%clk 0:00:18.7]} 20... Re8 {[%clk
0:00:35.5]} 21. Ne5 {[%clk 0:00:17.8]} 21... Nd5 {[%clk 0:00:25.1]} 22. d7
{[%clk 0:00:12]} 22... Bxd7 {[%clk 0:00:24.6]} 23. Bxb4 {[%clk 0:00:10.9]} 23...
Nxb4 {[%clk 0:00:24.9]} 24. Nxd7 {[%clk 0:00:10.4]} 24... Nxd3 {[%clk
0:00:25.1]} 25. Rc6 {[%clk 0:00:09.7]} 25... a6 {[%clk 0:00:17.1]} 26. Ra1
{[%clk 0:00:07.7]} 26... Nb4 {[%clk 0:00:15.4]} 27. Rb6 {[%clk 0:00:06.4]} 27...
Nd5 {[%clk 0:00:14.8]} 28. Rd6 {[%clk 0:00:05.1]} 28... Red8 {[%clk 0:00:10.9]}
29. g3 {[%clk 0:00:04.4]} 29... Kf7 {[%clk 0:00:09.9]} 0-1

[Event "*** SCC Grand Prix: Titled Tuesday Blitz"]
[Site "Chess.com"]
[Date "2020.08.11"]
[Round "6"]
[White "TigrVShlyape"]
[Black "PavlovDanila"]
[Result "1-0"]
[WhiteElo "2857"]
[BlackElo "2668"]
[TimeControl "180+1"]
[EndTime "11:07:07 PDT"]
[Termination "TigrVShlyape won on time"]

1. d4 {[%clk 0:03:00.9]} 1... Nf6 {[%clk 0:02:59.5]} 2. Nf3 {[%clk 0:03:00.6]}
2... g6 {[%clk 0:02:59.6]} 3. c3 {[%clk 0:03:00.1]} 3... Bg7 {[%clk 0:03:00.1]}
4. Bf4 {[%clk 0:03:00.5]} 4... d6 {[%clk 0:03:00.7]} 5. h3 {[%clk 0:03:00.4]}
5... O-O {[%clk 0:03:01.6]} 6. Nbd2 {[%clk 0:03:00.4]} 6... Nfd7 {[%clk
0:02:59.3]} 7. e3 {[%clk 0:02:57.8]} 7... Nc6 {[%clk 0:02:56.6]} 8. Be2 {[%clk
0:02:56]} 8... e5 {[%clk 0:02:56.4]} 9. Bh2 {[%clk 0:02:50]} 9... f5 {[%clk
0:02:56.2]} 10. b4 {[%clk 0:02:41.8]} 10... Kh8 {[%clk 0:02:46.1]} 11. b5 {[%clk
0:02:39]} 11... Na5 {[%clk 0:02:44.1]} 12. Nb3 {[%clk 0:02:37.9]} 12... Nxb3
{[%clk 0:02:43]} 13. axb3 {[%clk 0:02:37.1]} 13... Qe7 {[%clk 0:02:41.7]} 14.
O-O {[%clk 0:02:35.4]} 14... g5 {[%clk 0:02:41.3]} 15. Nd2 {[%clk 0:02:16]}
15... Nf6 {[%clk 0:02:35.3]} 16. Qc1 {[%clk 0:02:09.3]} 16... f4 {[%clk
0:02:29.6]} 17. dxe5 {[%clk 0:02:05.3]} 17... dxe5 {[%clk 0:02:29]} 18. exf4
{[%clk 0:02:03.7]} 18... exf4 {[%clk 0:02:21]} 19. Re1 {[%clk 0:01:59.7]} 19...
Bf5 {[%clk 0:02:09.2]} 20. Bf3 {[%clk 0:01:58.2]} 20... Qc5 {[%clk 0:02:04.6]}
21. Bxb7 {[%clk 0:01:47.8]} 21... Rad8 {[%clk 0:02:03.8]} 22. b4 {[%clk
0:01:34]} 22... Qxb5 {[%clk 0:01:53]} 23. Bf3 {[%clk 0:01:32.2]} 23... Qd3
{[%clk 0:01:43.7]} 24. Nb3 {[%clk 0:01:30.4]} 24... Nd5 {[%clk 0:01:25.7]} 25.
Rd1 {[%clk 0:01:26.5]} 25... Qxc3 {[%clk 0:01:25.3]} 26. Bxd5 {[%clk 0:01:25.3]}
26... Qxb4 {[%clk 0:01:02.2]} 27. Rxa7 {[%clk 0:01:13.6]} 27... Rxd5 {[%clk
0:00:45.4]} 28. Rxd5 {[%clk 0:01:12.5]} 28... Qxb3 {[%clk 0:00:46]} 29. Rd1
{[%clk 0:01:07.9]} 29... Be5 {[%clk 0:00:24.9]} 30. Re1 {[%clk 0:01:06.8]} 30...
Bd4 {[%clk 0:00:13.3]} 31. Rxc7 {[%clk 0:01:03.1]} 31... Qb6 {[%clk 0:00:13.4]}
32. Kh1 {[%clk 0:00:56.9]} 32... Bxf2 {[%clk 0:00:12.4]} 33. Bg1 {[%clk
0:00:55.3]} 33... Bxg1 {[%clk 0:00:11.9]} 34. Rxg1 {[%clk 0:00:55]} 34... f3
{[%clk 0:00:12.4]} 35. Qc3+ {[%clk 0:00:55.1]} 35... Qf6 {[%clk 0:00:11.4]} 36.
gxf3 {[%clk 0:00:54.1]} 36... Qxc3 {[%clk 0:00:10.2]} 37. Rxc3 {[%clk
0:00:53.3]} 37... h6 {[%clk 0:00:11.1]} 38. Kh2 {[%clk 0:00:51.8]} 38... Kh7
{[%clk 0:00:11.2]} 39. Kg3 {[%clk 0:00:51.9]} 39... Kg6 {[%clk 0:00:11.4]} 40.
Ra1 {[%clk 0:00:50.6]} 40... Rf6 {[%clk 0:00:11]} 41. Ra5 {[%clk 0:00:49.7]}
41... Kh5 {[%clk 0:00:10.8]} 42. Rac5 {[%clk 0:00:48.4]} 42... Bd7 {[%clk
0:00:10]} 43. h4 {[%clk 0:00:44.4]} 43... Rf4 {[%clk 0:00:09.8]} 44. hxg5 {[%clk
0:00:44.2]} 44... hxg5 {[%clk 0:00:10.7]} 45. Rd3 {[%clk 0:00:43.6]} 45... Bf5
{[%clk 0:00:10.1]} 46. Rdd5 {[%clk 0:00:43.2]} 46... Kg6 {[%clk 0:00:09.8]} 47.
Rd6+ {[%clk 0:00:42.8]} 47... Kh5 {[%clk 0:00:09.9]} 48. Rf6 {[%clk 0:00:42.5]}
1-0

[Event "*** SCC Grand Prix: Titled Tuesday Blitz"]
[Site "Chess.com"]
[Date "2020.08.11"]
[Round "6"]
[White "DACF2905"]
[Black "kakakz"]
[Result "0-1"]
[WhiteElo "2223"]
[BlackElo "2435"]
[TimeControl "180+1"]
[EndTime "11:07:07 PDT"]
[Termination "kakakz won by resignation"]

1. c4 {[%clk 0:03:00.9]} 1... Nf6 {[%clk 0:02:55.1]} 2. Nc3 {[%clk 0:02:58.2]}
2... g6 {[%clk 0:02:55.8]} 3. g3 {[%clk 0:02:56.9]} 3... d6 {[%clk 0:02:56.7]}
4. Bg2 {[%clk 0:02:57.2]} 4... Bg7 {[%clk 0:02:57.6]} 5. d4 {[%clk 0:02:57.4]}
5... O-O {[%clk 0:02:58.5]} 6. Nf3 {[%clk 0:02:56.5]} 6... Nbd7 {[%clk
0:02:58.7]} 7. O-O {[%clk 0:02:56.1]} 7... c6 {[%clk 0:02:59.6]} 8. e4 {[%clk
0:02:40.6]} 8... e5 {[%clk 0:02:59.2]} 9. Re1 {[%clk 0:02:38.8]} 9... Re8 {[%clk
0:02:58.3]} 10. h3 {[%clk 0:02:33.8]} 10... a5 {[%clk 0:02:53.4]} 11. Bg5 {[%clk
0:02:31.6]} 11... exd4 {[%clk 0:02:40.1]} 12. Nxd4 {[%clk 0:02:30.6]} 12... a4
{[%clk 0:02:40.4]} 13. Rc1 {[%clk 0:02:24.8]} 13... Qa5 {[%clk 0:02:39.5]} 14.
Bf4 {[%clk 0:02:19.7]} 14... Ne5 {[%clk 0:02:39.1]} 15. b3 {[%clk 0:02:07.2]}
15... axb3 {[%clk 0:02:26.3]} 16. axb3 {[%clk 0:02:07.2]} 16... Nfd7 {[%clk
0:02:19.9]} 17. Nde2 {[%clk 0:01:58.1]} 17... Nc5 {[%clk 0:02:13.4]} 18. Qxd6
{[%clk 0:01:35.3]} 18... Nxb3 {[%clk 0:02:06.4]} 19. Rb1 {[%clk 0:01:31.8]}
19... Nxc4 {[%clk 0:02:05.5]} 20. Qd3 {[%clk 0:01:22.7]} 20... Qb4 {[%clk
0:01:37.4]} 21. Rxb3 {[%clk 0:01:13.1]} 21... Qxb3 {[%clk 0:01:35.9]} 22. Rb1
{[%clk 0:01:13.1]} 22... Qa3 {[%clk 0:00:41.9]} 23. Qxc4 {[%clk 0:01:12]} 23...
Be6 {[%clk 0:00:42.1]} 24. Qb4 {[%clk 0:00:58]} 24... Qxb4 {[%clk 0:00:41.5]}
25. Rxb4 {[%clk 0:00:57.1]} 25... b5 {[%clk 0:00:42.4]} 26. Bd6 {[%clk
0:00:54.1]} 26... Ra1+ {[%clk 0:00:35.6]} 27. Kh2 {[%clk 0:00:52.3]} 27... Bc4
{[%clk 0:00:27]} 28. f4 {[%clk 0:00:27.9]} 28... Re1 {[%clk 0:00:26.3]} 29. Bf3
{[%clk 0:00:20.6]} 29... Bxc3 {[%clk 0:00:26.6]} 30. Nxc3 {[%clk 0:00:20.1]}
30... Re3 {[%clk 0:00:27.2]} 31. Bg4 {[%clk 0:00:11.4]} 31... Rxc3 {[%clk
0:00:26.8]} 32. e5 {[%clk 0:00:11.8]} 32... Rc2+ {[%clk 0:00:25.4]} 33. Kg1
{[%clk 0:00:11.6]} 33... Ra8 {[%clk 0:00:25.8]} 34. Rb1 {[%clk 0:00:10.3]} 34...
Raa2 {[%clk 0:00:24.2]} 35. Bd7 {[%clk 0:00:09.5]} 35... Rg2+ {[%clk 0:00:22.2]}
0-1

[Event "*** SCC Grand Prix: Titled Tuesday Blitz"]
[Site "Chess.com"]
[Date "2020.08.11"]
[Round "6"]
[White "UCantHandleDenker"]
[Black "Region_07"]
[Result "1-0"]
[WhiteElo "2578"]
[BlackElo "2406"]
[TimeControl "180+1"]
[EndTime "11:07:08 PDT"]
[Termination "UCantHandleDenker won by checkmate"]

1. Nf3 {[%clk 0:02:56]} 1... f5 {[%clk 0:02:58]} 2. g3 {[%clk 0:02:55.3]} 2...
Nf6 {[%clk 0:02:57.7]} 3. Bg2 {[%clk 0:02:56]} 3... d6 {[%clk 0:02:55]} 4. O-O
{[%clk 0:02:56.9]} 4... g6 {[%clk 0:02:54.5]} 5. c4 {[%clk 0:02:55.8]} 5... Bg7
{[%clk 0:02:54.4]} 6. d3 {[%clk 0:02:56.1]} 6... O-O {[%clk 0:02:54.3]} 7. Nc3
{[%clk 0:02:56.8]} 7... c5 {[%clk 0:02:50.2]} 8. Rb1 {[%clk 0:02:55.7]} 8... Nc6
{[%clk 0:02:49.3]} 9. a3 {[%clk 0:02:55.4]} 9... a5 {[%clk 0:02:48.6]} 10. Ne1
{[%clk 0:02:50.3]} 10... Bd7 {[%clk 0:02:36.5]} 11. Bd2 {[%clk 0:02:34.7]} 11...
e6 {[%clk 0:02:30.6]} 12. b3 {[%clk 0:02:14.6]} 12... Qe7 {[%clk 0:02:25.7]} 13.
Nc2 {[%clk 0:02:14.3]} 13... Rab8 {[%clk 0:02:20.2]} 14. b4 {[%clk 0:02:13.9]}
14... axb4 {[%clk 0:02:19.5]} 15. axb4 {[%clk 0:02:14.8]} 15... b6 {[%clk
0:02:04.6]} 16. b5 {[%clk 0:02:12.3]} 16... Nd4 {[%clk 0:01:59.4]} 17. Nxd4
{[%clk 0:02:10.5]} 17... cxd4 {[%clk 0:02:00.3]} 18. Na2 {[%clk 0:02:11.2]}
18... e5 {[%clk 0:01:55.7]} 19. Bg5 {[%clk 0:02:06.8]} 19... h6 {[%clk
0:01:54.5]} 20. Bxf6 {[%clk 0:02:06.7]} 20... Qxf6 {[%clk 0:01:47.6]} 21. Nb4
{[%clk 0:02:07.6]} 21... h5 {[%clk 0:01:34.2]} 22. Ra1 {[%clk 0:02:06.5]} 22...
h4 {[%clk 0:01:31.5]} 23. Ra7 {[%clk 0:02:05]} 23... Be6 {[%clk 0:01:28.3]} 24.
Bd5 {[%clk 0:01:59.3]} 24... f4 {[%clk 0:01:07.7]} 25. g4 {[%clk 0:01:41.9]}
25... Kh8 {[%clk 0:00:46.8]} 26. f3 {[%clk 0:01:33.2]} 26... Rf7 {[%clk
0:00:37.1]} 27. Qa1 {[%clk 0:01:24.9]} 27... Rbf8 {[%clk 0:00:28.1]} 28. Bxe6
{[%clk 0:01:24]} 28... Qxe6 {[%clk 0:00:27.7]} 29. Rxf7 {[%clk 0:01:19.7]} 29...
Qxf7 {[%clk 0:00:26.4]} 30. Nd5 {[%clk 0:01:07.8]} 30... e4 {[%clk 0:00:25.8]}
31. fxe4 {[%clk 0:00:59.3]} 31... Qe6 {[%clk 0:00:24.5]} 32. h3 {[%clk
0:00:57.8]} 32... f3 {[%clk 0:00:14.9]} 33. Rxf3 {[%clk 0:00:57.2]} 33... Rxf3
{[%clk 0:00:13.7]} 34. exf3 {[%clk 0:00:57.4]} 34... Qe5 {[%clk 0:00:14.6]} 35.
f4 {[%clk 0:00:57.4]} 35... Qe8 {[%clk 0:00:12.8]} 36. Qa7 {[%clk 0:00:54.2]}
36... Qf8 {[%clk 0:00:11.9]} 37. Kg2 {[%clk 0:00:42.1]} 37... Be5 {[%clk
0:00:09.1]} 38. fxe5 {[%clk 0:00:32.3]} 38... Qh6 {[%clk 0:00:09.2]} 39. Qb8+
{[%clk 0:00:30.4]} 39... Kg7 {[%clk 0:00:08.8]} 40. Qc7+ {[%clk 0:00:30.1]}
40... Kh8 {[%clk 0:00:08.3]} 41. Qd8+ {[%clk 0:00:29.7]} 41... Kg7 {[%clk
0:00:07.7]} 42. Qe7+ {[%clk 0:00:29.2]} 42... Kh8 {[%clk 0:00:06.7]} 43. g5
{[%clk 0:00:27.1]} 43... Qh5 {[%clk 0:00:07]} 44. Qf8+ {[%clk 0:00:25.2]} 44...
Kh7 {[%clk 0:00:06.8]} 45. Nf6# {[%clk 0:00:25.9]} 1-0

[Event "*** SCC Grand Prix: Titled Tuesday Blitz"]
[Site "Chess.com"]
[Date "2020.08.11"]
[Round "6"]
[White "Firouzja2003"]
[Black "chito89"]
[Result "1-0"]
[WhiteElo "3032"]
[BlackElo "2749"]
[TimeControl "180+1"]
[EndTime "11:07:10 PDT"]
[Termination "Firouzja2003 won by resignation"]

1. e4 {[%clk 0:03:00.9]} 1... Nc6 {[%clk 0:02:56.4]} 2. Nf3 {[%clk 0:02:59.8]}
2... d6 {[%clk 0:02:55.9]} 3. d4 {[%clk 0:02:59.9]} 3... Nf6 {[%clk 0:02:54.9]}
4. Nc3 {[%clk 0:03:00.1]} 4... Bg4 {[%clk 0:02:49.9]} 5. d5 {[%clk 0:02:52.6]}
5... Nb8 {[%clk 0:02:47.7]} 6. h3 {[%clk 0:02:48.9]} 6... Bxf3 {[%clk
0:02:47.3]} 7. Qxf3 {[%clk 0:02:49.8]} 7... g6 {[%clk 0:02:47.7]} 8. g4 {[%clk
0:02:48]} 8... h5 {[%clk 0:02:40.5]} 9. g5 {[%clk 0:02:48]} 9... Nfd7 {[%clk
0:02:40.3]} 10. Bd2 {[%clk 0:02:46.7]} 10... Bg7 {[%clk 0:02:34.9]} 11. O-O-O
{[%clk 0:02:46.9]} 11... c6 {[%clk 0:02:35.1]} 12. Kb1 {[%clk 0:02:39.3]} 12...
O-O {[%clk 0:02:26.2]} 13. Qg3 {[%clk 0:02:34.6]} 13... b5 {[%clk 0:02:19.9]}
14. f4 {[%clk 0:02:30]} 14... b4 {[%clk 0:02:09.7]} 15. Ne2 {[%clk 0:02:30.2]}
15... Nc5 {[%clk 0:02:04.2]} 16. Qf3 {[%clk 0:02:08.4]} 16... cxd5 {[%clk
0:01:49.3]} 17. exd5 {[%clk 0:02:09.3]} 17... Nbd7 {[%clk 0:01:49.6]} 18. Bc1
{[%clk 0:02:09.1]} 18... Qb6 {[%clk 0:01:22.6]} 19. Nd4 {[%clk 0:01:58.2]} 19...
a5 {[%clk 0:01:06.3]} 20. Nc6 {[%clk 0:01:54.8]} 20... a4 {[%clk 0:00:56.7]} 21.
Bc4 {[%clk 0:01:32.6]} 21... b3 {[%clk 0:00:54.8]} 22. cxb3 {[%clk 0:01:32.3]}
22... axb3 {[%clk 0:00:55.7]} 23. a3 {[%clk 0:01:32.5]} 23... Ra4 {[%clk
0:00:54.5]} 24. Qe2 {[%clk 0:01:20.5]} 24... Rfa8 {[%clk 0:00:47.7]} 25. f5
{[%clk 0:00:49.3]} 25... Ne5 {[%clk 0:00:44.8]} 26. Nxe5 {[%clk 0:00:31.9]}
26... Bxe5 {[%clk 0:00:45.7]} 27. fxg6 {[%clk 0:00:32.1]} 27... Rxa3 {[%clk
0:00:30.6]} 28. gxf7+ {[%clk 0:00:30.9]} 28... Kf8 {[%clk 0:00:28.9]} 29. bxa3
{[%clk 0:00:31.3]} 29... Na4 {[%clk 0:00:29.2]} 30. Rd3 {[%clk 0:00:26.7]} 30...
b2 {[%clk 0:00:19.4]} 31. Be3 {[%clk 0:00:22.7]} 31... Qa5 {[%clk 0:00:19.5]}
32. Bd2 {[%clk 0:00:13.6]} 32... Qc5 {[%clk 0:00:16.6]} 33. Rb3 {[%clk
0:00:10.3]} 33... Qd4 {[%clk 0:00:13.7]} 34. g6 {[%clk 0:00:09.9]} 34... Nc5
{[%clk 0:00:13.7]} 35. Bh6+ {[%clk 0:00:09.6]} 35... Bg7 {[%clk 0:00:13.2]} 36.
Bxg7+ {[%clk 0:00:09.9]} 36... Kxg7 {[%clk 0:00:13.6]} 37. f8=Q+ {[%clk
0:00:09.6]} 37... Rxf8 {[%clk 0:00:12.8]} 38. Qxe7+ {[%clk 0:00:09.3]} 38...
Kxg6 {[%clk 0:00:08.9]} 39. Rg3+ {[%clk 0:00:09.6]} 1-0

[Event "*** SCC Grand Prix: Titled Tuesday Blitz"]
[Site "Chess.com"]
[Date "2020.08.11"]
[Round "6"]
[White "AliKa2810"]
[Black "Agibileg"]
[Result "1-0"]
[WhiteElo "2601"]
[BlackElo "2415"]
[TimeControl "180+1"]
[EndTime "11:07:11 PDT"]
[Termination "AliKa2810 won on time"]

1. d4 {[%clk 0:03:00.9]} 1... Nf6 {[%clk 0:02:54.6]} 2. c4 {[%clk 0:03:00.5]}
2... g6 {[%clk 0:02:53.6]} 3. Nc3 {[%clk 0:03:00.2]} 3... Bg7 {[%clk 0:02:52.3]}
4. e4 {[%clk 0:03:00.1]} 4... d6 {[%clk 0:02:53.2]} 5. h3 {[%clk 0:03:00]} 5...
O-O {[%clk 0:02:47.7]} 6. Be3 {[%clk 0:03:00.5]} 6... Nbd7 {[%clk 0:02:21.4]} 7.
g4 {[%clk 0:02:49.1]} 7... e5 {[%clk 0:02:20.4]} 8. d5 {[%clk 0:02:48.9]} 8...
c6 {[%clk 0:02:09.6]} 9. dxc6 {[%clk 0:02:40.6]} 9... bxc6 {[%clk 0:02:10.5]}
10. Qxd6 {[%clk 0:02:40.7]} 10... Re8 {[%clk 0:02:00.5]} 11. Nge2 {[%clk
0:02:19.7]} 11... Rb8 {[%clk 0:01:47.9]} 12. O-O-O {[%clk 0:02:11.4]} 12... Qa5
{[%clk 0:01:45.1]} 13. g5 {[%clk 0:01:50.1]} 13... Bf8 {[%clk 0:01:32.5]} 14.
Qd2 {[%clk 0:01:39.5]} 14... Nh5 {[%clk 0:01:27.1]} 15. h4 {[%clk 0:01:09.1]}
15... Bb4 {[%clk 0:01:26.7]} 16. Bh3 {[%clk 0:01:06.4]} 16... Nc5 {[%clk
0:01:14.5]} 17. Bxc8 {[%clk 0:01:05.6]} 17... Rbxc8 {[%clk 0:01:15.4]} 18. Qc2
{[%clk 0:01:03.4]} 18... Rb8 {[%clk 0:01:11.6]} 19. Rd2 {[%clk 0:00:39.6]} 19...
Ne6 {[%clk 0:00:58.2]} 20. Rhd1 {[%clk 0:00:36.1]} 20... c5 {[%clk 0:00:57.4]}
21. Rd5 {[%clk 0:00:23.8]} 21... Nd4 {[%clk 0:00:54.5]} 22. Nxd4 {[%clk
0:00:19.9]} 22... exd4 {[%clk 0:00:55.4]} 23. Bxd4 {[%clk 0:00:20.2]} 23... Nf4
{[%clk 0:00:51.4]} 24. Bf6 {[%clk 0:00:14.5]} 24... Nxd5 {[%clk 0:00:47.8]} 25.
Nxd5 {[%clk 0:00:14]} 25... Qxa2 {[%clk 0:00:47.3]} 26. e5 {[%clk 0:00:05.9]}
26... Ba5 {[%clk 0:00:40.2]} 27. Rd3 {[%clk 0:00:05.8]} 27... Qa1+ {[%clk
0:00:30.8]} 28. Qb1 {[%clk 0:00:05.9]} 28... Qa4 {[%clk 0:00:31.1]} 29. Qc2
{[%clk 0:00:05.3]} 29... Qa1+ {[%clk 0:00:20.9]} 30. Qb1 {[%clk 0:00:05.6]}
30... Qa4 {[%clk 0:00:15.5]} 31. b3 {[%clk 0:00:06]} 31... Qc6 {[%clk
0:00:11.3]} 32. Qc2 {[%clk 0:00:06.3]} 32... Qe6 {[%clk 0:00:05.3]} 33. h5
{[%clk 0:00:06.6]} 1-0